fUST/lending_fUST_20241111
["ID","MTS","AMOUNT","RATE_DAILY","PERIOD"]
[341886091,1731268243837,-500.0,0.00025753,2]
[341886092,1731268243847,-746.94,0.00025753,2]
[341886093,1731268243857,-500.0,0.00025753,2]
[341886094,1731268243868,-500.0,0.00025753,2]
[341886095,1731268243878,-1480.95,0.00025753,2]
[341886096,1731268243889,-500.0,0.00025753,2]
[341886097,1731268243899,-500.0,0.00025753,2]
[341886098,1731268243908,-731.05,0.00025753,2]
[341886099,1731268243918,-762.54,0.00025753,2]
[341886100,1731268243928,-1692.77,0.00025753,2]
[341886101,1731268243938,-500.0,0.00025753,2]
[341886102,1731268243948,-1118.95,0.00025753,2]
[341886103,1731268243958,-500.0,0.00025753,2]
[341886104,1731268243967,-500.0,0.00025753,2]
[341886105,1731268243976,-500.0,0.00025753,2]
[341886106,1731268243986,-296.45404908,0.00025753,2]
[341886107,1731268243998,-633.08,0.00025753,2]
[341886108,1731268244008,-751.15,0.00025753,2]
[341886109,1731268244017,-500.0,0.00025753,2]
[341886110,1731268244027,-389.05781559,0.00025753,2]
[341886111,1731268244037,-2093.74,0.00025753,2]
[341886112,1731268244047,-500.0,0.00025753,2]
[341886113,1731268244057,-832.27,0.00025753,2]
[341886114,1731268244067,-983.12,0.00025753,2]
[341886115,1731268244078,-500.0,0.00025753,2]
[341886116,1731268244089,-500.0,0.00025753,2]
[341886117,1731268244099,-442.5841783,0.00025753,2]
[341886118,1731268244110,-500.0,0.00025753,2]
[341886119,1731268244120,-2195.37,0.00025753,2]
[341886120,1731268244130,-769.84,0.00025753,2]
[341886121,1731268244140,-500.0,0.00025753,2]
[341886122,1731268244150,-1932.63125464,0.00025753,2]
[341886123,1731268244168,-698.91874536,0.00025753,2]
[341886124,1731268244177,-500.0,0.00025753,2]
[341886125,1731268244187,-500.0,0.00025753,2]
[341886126,1731268244197,-500.0,0.00025753,2]
[341886127,1731268244208,-502.35,0.00025753,2]
[341886128,1731268244218,-533.85638749,0.00025753,2]
[341886129,1731268244230,-499.50361251,0.00025753,2]
[341886130,1731268244242,-294.31959095,0.00025753,2]
[341886131,1731268244255,-205.68040905,0.00025753,2]
[341886132,1731268244265,-1033.47,0.00025753,2]
[341886133,1731268244275,-1196.84962095,0.00025753,2]
[341886134,1731268244336,-1940.38037905,0.00025753,2]
[341886135,1731268244347,-500.0,0.00025753,2]
[341886136,1731268244357,-673.95,0.00025753,2]
[341886137,1731268244367,-500.0,0.00025753,2]
[341886138,1731268244378,-594.05,0.00025753,2]
[341886139,1731268244388,-500.0,0.00025753,2]
[341886140,1731268244401,-4552.82,0.00025753,2]
[341886141,1731268244414,-764.02,0.00025753,2]
[341886143,1731268244424,-500.0,0.00025753,2]
[341886144,1731268244435,-500.0,0.00025753,2]
[341886146,1731268244445,-518.65,0.00025753,2]
[341886148,1731268244454,-703.87,0.00025753,2]
[341886150,1731268244464,-500.0,0.00025753,2]
[341886151,1731268244475,-13293.21,0.00025753,2]
[341886170,1731268244588,-500.0,0.00025753,2]
[341886173,1731268244614,-500.0,0.00025753,2]
[341886175,1731268244624,-500.0,0.00025753,2]
[341886177,1731268244634,-1138.26,0.00025753,2]
[341886179,1731268244644,-500.0,0.00025753,2]
[341886182,1731268244654,-583.0,0.00025753,2]
[341886185,1731268244664,-151.0,0.000258,7]
[341886187,1731268244675,-318.61379493,0.0002583,2]
[341886189,1731268244684,-500.0,0.0002583,2]
[341886191,1731268244694,-353.65029,0.00025863,7]
[341886194,1731268244704,-353.65029,0.00025863,7]
[341886197,1731268244714,-153.083267,0.00025863,7]
[341886200,1731268244724,-153.0,0.0002589,2]
[341886203,1731268244736,-583.0,0.0002589,2]
[341886205,1731268244752,-218.0,0.0002589,2]
[341886208,1731268244764,-181.923,0.00025921,11]
[341886211,1731268244774,-500.0,0.00025935,2]
[341886213,1731268244784,-528.18656167,0.00026,2]
[341886215,1731268244795,-150.112233,0.00026,14]
[341886217,1731268244807,-745.96,0.00026016,3]
[341886219,1731268244817,-372.98,0.00026016,3]
[341886221,1731268244826,-500.0,0.00026026,2]
[341886223,1731268244835,-471.83014834,0.00026026,2]
[341886225,1731268244845,-499.63717337,0.00026026,2]
[341886227,1731268244855,-390.66542943,0.00026026,2]
[341886229,1731268244864,-500.0,0.00026026,2]
[341886231,1731268244873,-500.0,0.00026026,2]
[341886234,1731268244882,-262.89352248,0.00026026,2]
[341886237,1731268244891,-547.89708397,0.00026026,2]
[341886239,1731268244901,-500.0,0.00026026,2]
[341886241,1731268244910,-500.0,0.00026026,2]
[341886244,1731268244920,-500.0,0.00026026,2]
[341886246,1731268244929,-500.0,0.00026026,2]
[341886248,1731268244939,-500.0,0.00026026,2]
[341886250,1731268244948,-404.81466476,0.00026026,2]
[341886251,1731268244958,-500.0,0.00026026,2]
[341886255,1731268244967,-518.82367461,0.00026026,2]
[341886257,1731268244977,-151.0,0.00026027,7]
[341886260,1731268244986,-151.0,0.00026027,7]
[341886261,1731268244998,-500.0,0.00026027,2]
[341886262,1731268245007,-500.0,0.00026027,2]
[341886264,1731268245017,-500.0,0.00026027,2]
[341886265,1731268245026,-500.0,0.00026027,2]
[341886266,1731268245035,-500.0,0.00026027,2]
[341886267,1731268245045,-500.0,0.00026027,2]
[341886268,1731268245055,-500.0,0.00026027,2]
[341886269,1731268245065,-500.0,0.00026027,2]
[341886270,1731268245075,-746.94,0.00026027,2]
[341886271,1731268245084,-500.0,0.00026027,2]
[341886272,1731268245095,-500.0,0.00026027,2]
[341886273,1731268245105,-1480.95,0.00026027,2]
[341886274,1731268245114,-500.0,0.00026027,2]
[341886275,1731268245123,-500.0,0.00026027,2]
[341886276,1731268245133,-731.05,0.00026027,2]
[341886277,1731268245143,-762.54,0.00026027,2]
[341886278,1731268245153,-1692.77,0.00026027,2]
[341886279,1731268245162,-500.0,0.00026027,2]
[341886280,1731268245171,-1118.95,0.00026027,2]
[341886281,1731268245181,-500.0,0.00026027,2]
[341886282,1731268245191,-500.0,0.00026027,2]
[341886283,1731268245200,-500.0,0.00026027,2]
[341886284,1731268245210,-633.08,0.00026027,2]
[341886285,1731268245219,-751.15,0.00026027,2]
[341886286,1731268245230,-500.0,0.00026027,2]
[341886287,1731268245244,-2093.74,0.00026027,2]
[341886288,1731268245253,-294.76428628,0.00026027,2]
[341886289,1731268245264,-832.27,0.00026027,2]
[341886290,1731268245273,-983.12,0.00026027,2]
[341886291,1731268245284,-500.0,0.00026027,2]
[341886292,1731268245294,-500.0,0.00026027,2]
[341886293,1731268245304,-500.0,0.00026027,2]
[341886294,1731268245314,-2195.37,0.00026027,2]
[341886295,1731268245324,-769.84,0.00026027,2]
[341886296,1731268245334,-500.0,0.00026027,2]
[341886297,1731268245344,-2631.55,0.00026027,2]
[341886298,1731268245354,-500.0,0.00026027,2]
[341886299,1731268245364,-500.0,0.00026027,2]
[341886300,1731268245373,-500.0,0.00026027,2]
[341886301,1731268245383,-502.35,0.00026027,2]
[341886302,1731268245393,-1033.36,0.00026027,2]
[341886303,1731268245403,-500.0,0.00026027,2]
[341886304,1731268245414,-1033.47,0.00026027,2]
[341886305,1731268245424,-3137.23,0.00026027,2]
[341886306,1731268245433,-673.95,0.00026027,2]
[341886307,1731268245443,-500.0,0.00026027,2]
[341886308,1731268245453,-594.05,0.00026027,2]
[341886309,1731268245463,-500.0,0.00026027,2]
[341886310,1731268245473,-4552.82,0.00026027,2]
[341886311,1731268245484,-764.02,0.00026027,2]
[341886312,1731268245499,-500.0,0.00026027,2]
[341886313,1731268245510,-500.0,0.00026027,2]
[341886314,1731268245520,-518.65,0.00026027,2]
[341886315,1731268245529,-703.87,0.00026027,2]
[341886316,1731268245539,-500.0,0.00026027,2]
[341886317,1731268245549,-13293.21,0.00026027,2]
[341886318,1731268245559,-500.0,0.00026027,2]
[341886319,1731268245569,-500.0,0.00026027,2]
[341886320,1731268245578,-500.0,0.00026027,2]
[341886321,1731268245590,-1138.26,0.00026027,2]
[341886322,1731268245600,-500.0,0.00026027,2]
[341886323,1731268245610,-500.0,0.00026042,2]
[341886324,1731268245620,-1000.0,0.00026042,2]
[341886325,1731268245631,-503.06673909,0.00026042,2]
[341886326,1731268245641,-628.95389501,0.00026042,2]
[341886327,1731268245651,-1000.0,0.00026042,2]
[341886328,1731268245663,-1002.41234486,0.00026042,2]
[341886329,1731268245672,-459.06348166,0.00026042,2]
[341886330,1731268245682,-1000.0,0.00026042,2]
[341886331,1731268245691,-588.21778384,0.00026042,2]
[341886332,1731268245701,-1000.0,0.00026042,2]
[341886333,1731268245712,-1000.0,0.00026042,2]
[341886334,1731268245722,-1000.0,0.00026042,2]
[341886335,1731268245732,-1000.0,0.00026042,2]
[341886336,1731268245746,-500.0,0.00026042,2]
[341886337,1731268245757,-507.47644622,0.00026042,2]
[341886338,1731268245768,-503.45751418,0.00026042,2]
[341886339,1731268245779,-501.18988721,0.00026042,2]
[341886340,1731268245789,-1210.47,0.000261,14]
[341886341,1731268245799,-2750.22,0.000261,14]
[341886342,1731268245806,-1590.0543931,0.00026125,2]
[341886343,1731268245817,-587.0,0.00026184,2]
[341886344,1731268245827,-150.112233,0.000262,19]
[341886345,1731268245838,-151.0,0.00026301,7]
[341886346,1731268245848,-151.0,0.00026301,7]
[341886347,1731268245858,-353.65029,0.00026301,7]
[341886348,1731268245868,-353.65029,0.00026301,7]
[341886349,1731268245878,-151.0,0.00026301,7]
[341886350,1731268245888,-500.0,0.00026301,2]
[341886351,1731268245899,-489.1216235,0.00026301,2]
[341886352,1731268245908,-151.0,0.00026301,7]
[341886353,1731268245917,-500.0,0.00026301,2]
[341886354,1731268245927,-562.68375767,0.00026301,2]
[341886355,1731268245937,-500.0,0.00026301,2]
[341886356,1731268245947,-500.0,0.00026301,2]
[341886357,1731268245957,-500.0,0.00026301,2]
[341886358,1731268245967,-500.0,0.00026301,2]
[341886359,1731268245977,-746.94,0.00026301,2]
[341886360,1731268245986,-500.0,0.00026301,2]
[341886361,1731268246001,-500.0,0.00026301,2]
[341886362,1731268246011,-358.907436,0.00026301,7]
[341886363,1731268246021,-1480.95,0.00026301,2]
[341886364,1731268246031,-358.907436,0.00026301,7]
[341886365,1731268246042,-500.0,0.00026301,2]
[341886366,1731268246052,-500.0,0.00026301,2]
[341886367,1731268246062,-731.05,0.00026301,2]
[341886368,1731268246072,-762.54,0.00026301,2]
[341886369,1731268246082,-1692.77,0.00026301,2]
[341886370,1731268246092,-500.0,0.00026301,2]
[341886371,1731268246102,-151.0,0.00026301,7]
[341886372,1731268246111,-1118.95,0.00026301,2]
[341886373,1731268246122,-486.164514,0.00026301,7]
[341886374,1731268246132,-500.0,0.00026301,2]
[341886375,1731268246142,-486.164514,0.00026301,7]
[341886376,1731268246152,-566.4,0.00026301,2]
[341886377,1731268246162,-515.58,0.00026301,2]
[341886378,1731268246172,-633.08,0.00026301,2]
[341886379,1731268246182,-151.0,0.00026301,7]
[341886380,1731268246191,-751.15,0.00026301,2]
[341886381,1731268246201,-151.0,0.00026301,7]
[341886382,1731268246210,-151.0,0.00026301,7]
[341886383,1731268246220,-151.0,0.00026301,7]
[341886384,1731268246231,-500.0,0.00026301,2]
[341886385,1731268246242,-251.964599,0.00026301,7]
[341886386,1731268246252,-664.327618,0.00026301,7]
[341886387,1731268246262,-664.327618,0.00026301,7]
[341886388,1731268246272,-251.859658,0.00026301,7]
[341886389,1731268246281,-167.092034,0.00026301,7]
[341886390,1731268246292,-167.092034,0.00026301,7]
[341886391,1731268246302,-174.992568,0.00026301,7]
[341886393,1731268246312,-174.992568,0.00026301,7]
[341886394,1731268246323,-2093.74,0.00026301,2]
[341886395,1731268246333,-151.0,0.00026301,7]
[341886396,1731268246343,-319.064292,0.00026301,7]
[341886397,1731268246352,-319.064292,0.00026301,7]
[341886398,1731268246363,-832.27,0.00026301,2]
[341886399,1731268246373,-172.361063,0.00026301,7]
[341886401,1731268246383,-983.12,0.00026301,2]
[341886404,1731268246393,-172.361063,0.00026301,7]
[341886407,1731268246403,-500.0,0.00026301,2]
[341886410,1731268246413,-500.0,0.00026301,2]
[341886414,1731268246423,-160.313884,0.00026301,7]
[341886418,1731268246432,-151.090426,0.00026301,7]
[341886421,1731268246442,-151.090426,0.00026301,7]
[341886424,1731268246452,-500.0,0.00026301,2]
[341886427,1731268246462,-1185.606969,0.00026301,7]
[341886430,1731268246472,-2195.37,0.00026301,2]
[341886434,1731268246482,-1185.606969,0.00026301,7]
[341886438,1731268246492,-769.84,0.00026301,2]
[341886442,1731268246505,-500.0,0.00026301,2]
[341886446,1731268246515,-2631.55,0.00026301,2]
[341886449,1731268246525,-500.0,0.00026301,2]
[341886452,1731268246535,-500.0,0.00026301,2]
[341886456,1731268246546,-151.0,0.00026301,7]
[341886460,1731268246556,-151.0,0.00026301,7]
[341886464,1731268246567,-500.0,0.00026301,2]
[341886468,1731268246580,-151.0,0.00026301,7]
[341886471,1731268246590,-502.35,0.00026301,2]
[341886476,1731268246600,-1033.36,0.00026301,2]
[341886479,1731268246609,-500.0,0.00026301,2]
[341886483,1731268246619,-151.0,0.00026301,7]
[341886485,1731268246629,-1033.47,0.00026301,2]
[341886488,1731268246639,-3137.23,0.00026301,2]
[341886490,1731268246649,-673.95,0.00026301,2]
[341886492,1731268246659,-500.0,0.00026301,2]
[341886495,1731268246669,-151.0,0.00026301,7]
[341886497,1731268246681,-594.05,0.00026301,2]
[341886499,1731268246691,-500.0,0.00026301,2]
[341886501,1731268246700,-4552.82,0.00026301,2]
[341886503,1731268246709,-764.02,0.00026301,2]
[341886505,1731268246719,-258.57512,0.00026301,7]
[341886507,1731268246729,-500.0,0.00026301,2]
[341886509,1731268246741,-500.0,0.00026301,2]
[341886511,1731268246751,-258.57512,0.00026301,7]
[341886513,1731268246761,-518.65,0.00026301,2]
[341886515,1731268246771,-703.87,0.00026301,2]
[341886517,1731268246782,-500.0,0.00026301,2]
[341886519,1731268246793,-13293.21,0.00026301,2]
[341886521,1731268246803,-500.0,0.00026301,2]
[341886523,1731268246813,-500.0,0.00026301,2]
[341886525,1731268246824,-500.0,0.00026301,2]
[341886527,1731268246834,-552.883327,0.00026301,7]
[341886529,1731268246844,-1138.26,0.00026301,2]
[341886531,1731268246854,-500.0,0.00026301,2]
[341886533,1731268246864,-395.493705,0.00026301,7]
[341886535,1731268246874,-552.883327,0.00026301,7]
[341886537,1731268246884,-395.493705,0.00026301,7]
[341886539,1731268246894,-151.0,0.00026309,7]
[341886541,1731268246903,-2751.83842117,0.00026344,2]
[341886544,1731268246914,-26239.5,0.000264,14]
[341886546,1731268246923,-151.0,0.000264,7]
[341886548,1731268246934,-151.0,0.000264,7]
[341886550,1731268246944,-151.0,0.000264,7]
[341886552,1731268246954,-150.112233,0.000264,17]
[341886555,1731268246963,-200.0,0.0002641,16]
[341886557,1731268246973,-20000.0,0.00026429,2]
[341886560,1731268246983,-511.07117491,0.00026441,2]
[341886562,1731268246997,-199.018305,0.00026475,7]
[341886564,1731268247009,-199.018305,0.00026475,7]
[341886566,1731268247020,-151.0,0.00026475,7]
[341886568,1731268247029,-151.0,0.00026475,7]
[341886570,1731268247038,-2017.416313,0.00026535,7]
[341886572,1731268247047,-2017.416313,0.00026535,7]
[341886575,1731268247057,-465.00000778,0.00026542,2]
[341886577,1731268247066,-500.0,0.00026573,2]
[341886578,1731268247076,-500.0,0.00026573,2]
[341886580,1731268247085,-500.0,0.00026573,2]
[341886582,1731268247095,-507.70940403,0.00026573,2]
[341886584,1731268247104,-500.6839231,0.00026573,2]
[341886586,1731268247113,-500.0,0.00026573,2]
[341886588,1731268247123,-500.0,0.00026573,2]
[341886591,1731268247132,-500.0,0.00026573,2]
[341886593,1731268247141,-500.0,0.00026573,2]
[341886595,1731268247150,-500.0,0.00026573,2]
[341886597,1731268247159,-500.50729843,0.00026573,2]
[341886598,1731268247169,-500.0,0.00026573,2]
[341886600,1731268247178,-414.32263164,0.00026574,2]
[341886601,1731268247187,-12190.04728864,0.00026574,2]
[341886602,1731268247196,-151.0,0.00026575,7]
[341886603,1731268247205,-151.0,0.00026575,7]
[341886605,1731268247214,-353.65029,0.00026575,7]
[341886608,1731268247224,-353.65029,0.00026575,7]
[341886610,1731268247233,-500.0,0.00026575,2]
[341886613,1731268247246,-151.0,0.00026575,7]
[341886615,1731268247256,-151.0,0.00026575,7]
[341886617,1731268247264,-151.0,0.00026575,7]
[341886619,1731268247273,-1721.045795,0.00026575,7]
[341886621,1731268247283,-1721.045795,0.00026575,7]
[341886623,1731268247292,-500.0,0.00026575,2]
[341886624,1731268247301,-500.0,0.00026575,2]
[341886625,1731268247310,-500.0,0.00026575,2]
[341886626,1731268247319,-500.0,0.00026575,2]
[341886627,1731268247329,-500.0,0.00026575,2]
[341886628,1731268247338,-746.94,0.00026575,2]
[341886629,1731268247347,-213.602354,0.00026575,2]
[341886630,1731268247356,-213.602354,0.00026575,2]
[341886631,1731268247365,-500.0,0.00026575,2]
[341886632,1731268247374,-500.0,0.00026575,2]
[341886633,1731268247383,-1480.95,0.00026575,2]
[341886634,1731268247392,-500.0,0.00026575,2]
[341886635,1731268247401,-500.0,0.00026575,2]
[341886636,1731268247411,-731.05,0.00026575,2]
[341886637,1731268247422,-762.54,0.00026575,2]
[341886638,1731268247430,-1692.77,0.00026575,2]
[341886639,1731268247439,-500.0,0.00026575,2]
[341886640,1731268247449,-1118.95,0.00026575,2]
[341886641,1731268247458,-500.0,0.00026575,2]
[341886642,1731268247467,-633.08,0.00026575,2]
[341886643,1731268247476,-751.15,0.00026575,2]
[341886644,1731268247485,-500.0,0.00026575,2]
[341886645,1731268247497,-2093.74,0.00026575,2]
[341886646,1731268247506,-832.27,0.00026575,2]
[341886647,1731268247518,-983.12,0.00026575,2]
[341886648,1731268247527,-500.0,0.00026575,2]
[341886649,1731268247537,-500.0,0.00026575,2]
[341886650,1731268247546,-2195.37,0.00026575,2]
[341886651,1731268247555,-769.84,0.00026575,2]
[341886652,1731268247564,-500.0,0.00026575,2]
[341886653,1731268247573,-2631.55,0.00026575,2]
[341886654,1731268247583,-500.0,0.00026575,2]
[341886655,1731268247593,-500.0,0.00026575,2]
[341886656,1731268247602,-500.0,0.00026575,2]
[341886657,1731268247612,-502.35,0.00026575,2]
[341886658,1731268247621,-1033.36,0.00026575,2]
[341886659,1731268247631,-500.0,0.00026575,2]
[341886660,1731268247640,-1033.47,0.00026575,2]
[341886661,1731268247759,-3137.23,0.00026575,2]
[341886662,1731268247769,-673.95,0.00026575,2]
[341886663,1731268247779,-376.76048032,0.00026575,2]
[341886664,1731268247789,-594.05,0.00026575,2]
[341886665,1731268247799,-500.0,0.00026575,2]
[341886666,1731268247809,-4552.82,0.00026575,2]
[341886667,1731268247818,-764.02,0.00026575,2]
[341886668,1731268247827,-500.0,0.00026575,2]
[341886669,1731268247836,-500.0,0.00026575,2]
[341886670,1731268247845,-518.65,0.00026575,2]
[341886671,1731268247854,-703.87,0.00026575,2]
[341886672,1731268247864,-500.0,0.00026575,2]
[341886673,1731268247873,-13293.21,0.00026575,2]
[341886674,1731268247882,-500.0,0.00026575,2]
[341886675,1731268247892,-500.0,0.00026575,2]
[341886676,1731268247901,-500.0,0.00026575,2]
[341886677,1731268247911,-552.883327,0.00026575,7]
[341886678,1731268247920,-1138.26,0.00026575,2]
[341886679,1731268247929,-500.0,0.00026575,2]
[341886680,1731268247938,-395.493705,0.00026575,7]
[341886681,1731268247948,-552.883327,0.00026575,7]
[341886682,1731268247957,-395.493705,0.00026575,7]
[341886683,1731268247966,-1128.0,0.0002658,2]
[341886684,1731268247976,-529.0,0.0002658,2]
[341886685,1731268247985,-2392.0,0.0002658,2]
[341886686,1731268247998,-216189.12288578,0.00026581,2]
[341886687,1731268248329,-500.0,0.00024657,2]
[341886688,1731268248339,-500.0,0.00024657,2]
[341886689,1731268248348,-313.6,0.00024931,2]
[341886690,1731268248357,-4567.45818497,0.00026581,2]
[341886691,1731268248369,-17091.70985435,0.00026581,2]
[341886692,1731268248379,-151.0,0.00026581,7]
[341886693,1731268248389,-258.57512,0.00026581,7]
[341886694,1731268248398,-258.57512,0.00026581,7]
[341886695,1731268248408,-552.883327,0.00026581,7]
[341886696,1731268248417,-395.493705,0.00026581,7]
[341886697,1731268248427,-552.883327,0.00026581,7]
[341886698,1731268248436,-395.493705,0.00026581,7]
[341886699,1731268248446,-157.627231,0.00026591,7]
[341886700,1731268248456,-151.0,0.00026591,7]
[341886701,1731268248466,-151.0,0.00026592,7]
[341886702,1731268248476,-1590.0543931,0.00026597,2]
[341886703,1731268248486,-1000.0,0.000266,5]
[341886704,1731268248504,-151.0,0.000268,2]
[341886705,1731268248513,-176.81878437,0.000268,2]
[341886706,1731268248524,-587.0,0.00026841,2]
[341886707,1731268248534,-153.28147,0.00026849,7]
[341886708,1731268248544,-151.0,0.00026849,7]
[341886709,1731268248553,-353.65029,0.00026849,7]
[341886710,1731268248563,-353.65029,0.00026849,7]
[341886711,1731268248574,-239.999206,0.00026849,7]
[341886712,1731268248583,-239.999206,0.00026849,7]
[341886713,1731268248592,-500.0,0.00026849,2]
[341886714,1731268248602,-574.595586,0.00026849,7]
[341886715,1731268248611,-574.595586,0.00026849,7]
[341886716,1731268248620,-500.0,0.00026849,2]
[341886717,1731268248629,-500.0,0.00026849,2]
[341886718,1731268248639,-386.56185545,0.00026849,2]
[341886719,1731268248648,-500.0,0.00026849,2]
[341886720,1731268248658,-500.0,0.00026849,2]
[341886721,1731268248668,-746.94,0.00026849,2]
[341886722,1731268248677,-500.0,0.00026849,2]
[341886723,1731268248687,-500.0,0.00026849,2]
[341886724,1731268248696,-358.907436,0.00026849,7]
[341886725,1731268248706,-1303.084985,0.00026849,7]
[341886726,1731268248715,-1480.95,0.00026849,2]
[341886727,1731268248725,-358.907436,0.00026849,7]
[341886728,1731268248734,-1303.084985,0.00026849,7]
[341886729,1731268248747,-500.0,0.00026849,2]
[341886730,1731268248757,-500.0,0.00026849,2]
[341886731,1731268248767,-731.05,0.00026849,2]
[341886732,1731268248776,-762.54,0.00026849,2]
[341886733,1731268248786,-1692.77,0.00026849,2]
[341886734,1731268248795,-500.0,0.00026849,2]
[341886735,1731268248804,-760.18,0.00026849,2]
[341886736,1731268248814,-1118.95,0.00026849,2]
[341886737,1731268248823,-486.164514,0.00026849,7]
[341886738,1731268248832,-500.0,0.00026849,2]
[341886739,1731268248841,-486.164514,0.00026849,7]
[341886740,1731268248851,-633.08,0.00026849,2]
[341886741,1731268248860,-751.15,0.00026849,2]
[341886742,1731268248869,-151.0,0.00026849,7]
[341886743,1731268248878,-500.0,0.00026849,2]
[341886744,1731268248887,-664.327618,0.00026849,7]
[341886745,1731268248896,-664.327618,0.00026849,7]
[341886746,1731268248905,-251.859658,0.00026849,7]
[341886747,1731268248914,-167.092034,0.00026849,7]
[341886748,1731268248924,-167.092034,0.00026849,7]
[341886749,1731268248933,-174.992568,0.00026849,7]
[341886750,1731268248943,-103.20764372,0.00026849,7]
[341886751,1731268248955,-71.78492428,0.00026849,7]
[341886752,1731268248965,-151.0,0.00026849,7]
[341886753,1731268248975,-319.064292,0.00026849,7]
[341886754,1731268248984,-319.064292,0.00026849,7]
[341886755,1731268248997,-832.27,0.00026849,2]
[341886756,1731268249007,-172.361063,0.00026849,7]
[341886757,1731268249016,-172.361063,0.00026849,7]
[341886758,1731268249026,-500.0,0.00026849,2]
[341886759,1731268249035,-151.090426,0.00026849,7]
[341886760,1731268249044,-151.090426,0.00026849,7]
[341886761,1731268249054,-500.0,0.00026849,2]
[341886762,1731268249063,-1185.606969,0.00026849,7]
[341886763,1731268249072,-2195.37,0.00026849,2]
[341886764,1731268249083,-1185.606969,0.00026849,7]
[341886765,1731268249092,-769.84,0.00026849,2]
[341886766,1731268249102,-500.0,0.00026849,2]
[341886767,1731268249111,-2631.55,0.00026849,2]
[341886768,1731268249120,-500.0,0.00026849,2]
[341886769,1731268249130,-500.0,0.00026849,2]
[341886770,1731268249139,-500.0,0.00026849,2]
[341886771,1731268249149,-151.0,0.00026849,7]
[341886772,1731268249159,-502.35,0.00026849,2]
[341886773,1731268249169,-1033.36,0.00026849,2]
[341886774,1731268249179,-500.0,0.00026849,2]
[341886775,1731268249189,-1033.47,0.00026849,2]
[341886776,1731268249199,-3137.23,0.00026849,2]
[341886777,1731268249209,-673.95,0.00026849,2]
[341886778,1731268249219,-594.05,0.00026849,2]
[341886779,1731268249229,-482.94538143,0.00026849,2]
[341886780,1731268249238,-4552.82,0.00026849,2]
[341886781,1731268249252,-764.02,0.00026849,2]
[341886782,1731268249262,-500.0,0.00026849,2]
[341886783,1731268249272,-500.0,0.00026849,2]
[341886784,1731268249283,-518.65,0.00026849,2]
[341886785,1731268249293,-703.87,0.00026849,2]
[341886786,1731268249303,-500.0,0.00026849,2]
[341886787,1731268249312,-13293.21,0.00026849,2]
[341886788,1731268249322,-500.0,0.00026849,2]
[341886789,1731268249332,-500.0,0.00026849,2]
[341886790,1731268249342,-500.0,0.00026849,2]
[341886791,1731268249352,-1138.26,0.00026849,2]
[341886792,1731268249362,-500.0,0.00026849,2]
[341886793,1731268249372,-500.0,0.00026873,2]
[341886794,1731268249381,-609.46943033,0.00026873,2]
[341886795,1731268249390,-500.0,0.00026873,2]
[341886796,1731268249401,-156.013036,0.00026873,7]
[341886797,1731268249411,-151.0,0.00026873,7]
[341886798,1731268249421,-151.0,0.00026873,7]